fUSD/lending_fUSD_20251201
["ID","MTS","AMOUNT","RATE_DAILY","PERIOD"]
[395313549,1764609109359,-173.86180513,0.00042,120]
[395313550,1764609109369,-150.0,0.00042,60]
[395313551,1764609109378,-1353.30682101,0.0004201,2]
[395313552,1764609109389,-150.18854289,0.0004201,38]
[395313553,1764609109398,-301.55988547,0.0004201,38]
[395313554,1764609109408,-670.16349368,0.0004201,38]
[395313555,1764609109417,-158.55,0.00042012,120]
[395313556,1764609109427,-511.68296039,0.00042027,2]
[395313557,1764609109436,-158.02828529,0.00042048,120]
[395313558,1764609109446,-1198.00991757,0.0004205,2]
[395313559,1764609109455,-865.0,0.00042055,30]
[395313560,1764609109465,-865.0,0.00042055,30]
[395313561,1764609109474,-150.0,0.00042059,120]
[395313562,1764609109483,-400.0,0.0004207,3]
[395313563,1764609109493,-300.0,0.0004207,3]
[395313564,1764609109502,-300.0,0.0004207,3]
[395313565,1764609109511,-400.0,0.0004207,3]
[395313566,1764609109521,-153.47,0.00042072,120]
[395313567,1764609109531,-162.24,0.00042072,120]
[395313568,1764609109540,-326.191,0.00042077,120]
[395313569,1764609109550,-151.0,0.00042077,120]
[395313570,1764609109559,-151.0,0.00042077,120]
[395313571,1764609109579,-8260.13072239,0.00042077,120]
[395313572,1764609109589,-1000.0,0.00042077,120]
[395313573,1764609109599,-151.0,0.00042077,120]
[395313574,1764609109608,-496.47127164,0.00042077,120]
[395313575,1764609109623,-160.0,0.00042077,120]
[395313576,1764609109635,-10000.0,0.00042077,120]
[395313577,1764609109645,-181.08010149,0.00042077,120]
[395313578,1764609109655,-181.08010149,0.00042077,120]
[395313579,1764609109665,-500.0,0.00042077,120]
[395313580,1764609109675,-250.0,0.00042077,120]
[395313581,1764609109684,-500.0,0.00042077,120]
[395313582,1764609109693,-1000.0,0.00042077,120]
[395313583,1764609109702,-2500.0,0.00042077,120]
[395313584,1764609109711,-3000.0,0.00042077,120]
[395313585,1764609109720,-623.58710448,0.00042077,120]
[395313586,1764609109730,-1000.0,0.00042077,120]
[395313587,1764609109739,-1500.0,0.00042077,120]
[395313588,1764609109747,-8000.0,0.00042077,120]
[395313589,1764609109756,-1000.0,0.00042077,120]
[395313590,1764609109867,-500.0,0.00042077,120]
[395313591,1764609109876,-250.0,0.00042077,120]
[395313592,1764609109885,-2750.0,0.00042077,120]
[395313593,1764609109894,-500.0,0.00042077,120]
[395313594,1764609109903,-151.0,0.00042077,120]
[395313595,1764609109912,-151.0,0.0004208,120]
[395313596,1764609109921,-151.0,0.0004208,120]
[395313597,1764609109930,-7965.41053268,0.0004208,120]
[395313598,1764609109939,-1000.0,0.0004208,120]
[395313599,1764609109948,-151.0,0.0004208,120]
[395313600,1764609109958,-478.75725327,0.0004208,120]
[395313601,1764609109968,-160.0,0.0004208,120]
[395313602,1764609109977,-10000.0,0.0004208,120]
[395313603,1764609109986,-174.61919141,0.0004208,120]
[395313604,1764609109996,-174.61919141,0.0004208,120]
[395313605,1764609110005,-500.0,0.0004208,120]
[395313606,1764609110015,-250.0,0.0004208,120]
[395313607,1764609110025,-500.0,0.0004208,120]
[395313608,1764609110034,-1000.0,0.0004208,120]
[395313609,1764609110048,-2500.0,0.0004208,120]
[395313610,1764609110057,-3000.0,0.0004208,120]
[395313611,1764609110067,-601.3376128,0.0004208,120]
[395313612,1764609110076,-1000.0,0.0004208,120]
[395313613,1764609110087,-1500.0,0.0004208,120]
[395313614,1764609110096,-8000.0,0.0004208,120]
[395313615,1764609110105,-1000.0,0.0004208,120]
[395313616,1764609110115,-500.0,0.0004208,120]
[395313617,1764609110126,-250.0,0.0004208,120]
[395313618,1764609110135,-2750.0,0.0004208,120]
[395313619,1764609110145,-500.0,0.0004208,120]
[395313620,1764609110155,-151.0,0.0004208,120]
[395313621,1764609110164,-478.9225,0.00042082,60]
[395313622,1764609110173,-1000.0,0.00042097,120]
[395313623,1764609110182,-1000.0,0.00042097,120]
[395313624,1764609110191,-1000.0,0.00042097,120]
[395313625,1764609110201,-1000.0,0.00042097,120]
[395313626,1764609110210,-1000.0,0.00042097,120]
[395313627,1764609110219,-1000.0,0.00042097,120]
[395313628,1764609110228,-1000.0,0.00042097,120]
[395313629,1764609110238,-1000.0,0.00042097,120]
[395313630,1764609110247,-1000.0,0.00042097,120]
[395313631,1764609110257,-1000.0,0.00042097,120]
[395313632,1764609110266,-1000.0,0.00042097,120]
[395313633,1764609110275,-1000.0,0.00042097,120]
[395313634,1764609110284,-1000.0,0.00042097,120]
[395313635,1764609110293,-1000.0,0.00042097,120]
[395313636,1764609110302,-1000.0,0.00042097,120]
[395313637,1764609110311,-1000.0,0.00042097,120]
[395313638,1764609110320,-1000.0,0.00042097,120]
[395313639,1764609110330,-1559.61650263,0.00042097,120]
[395313640,1764609110339,-50000.0,0.00042098,30]
[395313641,1764609110348,-22424.85037126,0.00042098,31]
[395313642,1764609112491,-316.1250019,0.0001442,2]
[395313643,1764609116180,2408.38,0.00025,120]
[395313644,1764609349312,396.44,0.00025,120]
[395313650,1764609920099,4790.83551532,9e-05,2]
[395313653,1764609948817,243.57451413,0.00012159,7]
[395313654,1764609959053,1750.84284904,0.00025,120]
[395313656,1764609962181,10008.35024346,8e-05,2]
[395313657,1764609966337,9373.16067857,0.00011,2]
[395313668,1764610033797,205.0,9.8e-05,2]
[395313669,1764610038015,258.50305797,0.000101,2]
[395313678,1764610071251,307.78797683,9.5e-05,2]
[395313679,1764610100682,1321.4064631,0.0001,2]
[395313680,1764610102628,194.50382569,7.888e-05,2]
[395313681,1764610112363,2720.65227362,0.0001,2]
[395313682,1764610115636,266.83417679,0.000107,2]
[395313683,1764610122353,11837.26425898,0.0001,2]
[395313696,1764610231835,-442.52408404,0.000123,2]
[395313697,1764610231845,-300.0,0.00012397,2]
[395313698,1764610231855,-1200.0,0.00012397,2]
[395313699,1764610231864,-300.0,0.00012397,2]
[395313700,1764610231873,-150.0,0.00012397,2]
[395313701,1764610231883,-500.0,0.00012398,2]
[395313702,1764610231892,-500.0,0.00012398,2]
[395313703,1764610231902,-500.0,0.00012398,2]
[395313704,1764610231911,-500.0,0.00012398,2]
[395313705,1764610231920,-500.0,0.00012398,2]
[395313706,1764610231929,-500.0,0.00012398,2]
[395313707,1764610231938,-500.0,0.00012398,2]
[395313708,1764610231948,-500.0,0.00012398,2]
[395313709,1764610231957,-298.67591594,0.00012398,2]
[395313710,1764610231968,-201.32408406,0.00012398,2]
[395313711,1764610231978,-500.0,0.00012398,2]
[395313712,1764610231987,-468.93077531,0.00012398,2]
[395313713,1764610231996,-197.50363265,0.00012398,2]
[395313714,1764610232005,-155.56578465,0.00012398,2]
[395313715,1764610232014,-500.0,0.00012398,2]
[395313716,1764610232023,-500.0,0.00012398,2]
[395313717,1764610232033,-500.0,0.00012398,2]
[395313718,1764610232042,-500.0,0.00012398,2]
[395313719,1764610232051,-500.0,0.00012398,2]
[395313721,1764610232060,-500.0,0.00012398,2]
[395313723,1764610232070,-500.0,0.00012398,2]
[395313725,1764610232079,-500.0,0.00012398,2]
[395313727,1764610232088,-500.0,0.00012398,2]
[395313729,1764610232097,-500.0,0.00012398,2]
[395313731,1764610232106,-500.0,0.00012398,2]
[395313733,1764610232115,-500.0,0.00012398,2]
[395313735,1764610232125,-500.0,0.00012398,2]
[395313737,1764610232134,-500.0,0.00012398,2]
[395313738,1764610232144,-500.0,0.00012398,2]
[395313739,1764610232154,-201.04926862,0.00012398,2]
[395313740,1764610232164,-500.0,0.00012398,2]
[395313741,1764610232178,-500.0,0.00012398,2]
[395313742,1764610232193,-500.0,0.00012398,2]
[395313744,1764610232206,-500.0,0.00012398,2]
[395313746,1764610232217,-500.0,0.00012398,2]
[395313748,1764610232228,-113.4010963,0.00012398,2]
[395313753,1764610232269,-386.5989037,0.00012398,2]
[395313755,1764610232279,-500.0,0.00012398,2]
[395313757,1764610232289,-286.12023213,0.00012398,2]
[395313760,1764610232299,-11850.37093172,0.00012399,2]
[395313767,1764610237900,-8716.27391865,0.00012399,2]
[395313768,1764610237912,-23215.2720677,0.00012399,2]
[395313769,1764610237920,-305.74139571,0.000125,2]
[395313770,1764610237930,-4402.03094165,0.00013,2]
[395313771,1764610237939,-5315.44707909,0.0001305,2]
[395313772,1764610237948,-999.0,0.00013482,3]
[395313773,1764610237957,-255.0,0.00013488,2]
[395313774,1764610237966,-1000.0,0.000135,2]
[395313775,1764610237975,-420.0,0.00013604,2]
[395313776,1764610237984,-420.0,0.00013604,2]
[395313777,1764610237993,-1680.0,0.00013637,2]
[395313778,1764610238002,-1500.0,0.00013638,2]
[395313779,1764610238012,-612.07,0.00013699,2]
[395313780,1764610238021,-500.0,0.00013699,2]
[395313781,1764610238031,-500.0,0.00013699,2]
[395313782,1764610238040,-500.0,0.00013699,2]
[395313783,1764610238050,-500.0,0.00013699,2]
[395313784,1764610238060,-500.0,0.00013699,2]
[395313785,1764610238069,-500.0,0.00013699,2]
[395313786,1764610238079,-500.0,0.00013699,2]
[395313787,1764610238088,-395.16407358,0.00013699,2]
[395313788,1764610238098,-209.32995922,0.00013699,2]
[395313789,1764610238109,-500.0,0.00013699,2]
[395313790,1764610238119,-500.0,0.00013699,2]
[395313791,1764610238129,-500.0,0.00013699,2]
[395313792,1764610238138,-500.0,0.00013699,2]
[395313793,1764610238147,-500.0,0.00013699,2]
[395313794,1764610238156,-500.0,0.00013699,2]
[395313795,1764610238166,-159.2954588,0.00014125,2]
[395313797,1764610238176,-220.0,0.00014194,2]
[395313799,1764610238185,-319.0,0.00014223,2]
[395313801,1764610238196,-3319.0,0.00014247,2]
[395313803,1764610238205,-3352.82426492,0.0001439,2]
[395313805,1764610238217,-5064.28609727,0.0001439,2]
[395313807,1764610238226,-4120.52355366,0.00014409,2]
[395313809,1764610238239,-12684.21890504,0.00014409,2]
[395313811,1764610238248,-2975.97524976,0.00014409,2]
[395313813,1764610238258,-1641.82,0.00014416,2]
[395313815,1764610238266,-186.50331453,0.00014507,2]
[395313817,1764610238276,-500.0,0.00014508,2]
[395313819,1764610238285,-580.20708601,0.00014508,2]
[395313821,1764610238295,-500.0,0.00014508,2]
[395313823,1764610238306,-500.0,0.00014508,2]
[395313825,1764610238316,-386.00822049,0.00014508,2]
[395313826,1764610238325,-500.0,0.00014508,2]
[395313829,1764610238336,-500.0,0.00014508,2]
[395313831,1764610238346,-500.0,0.00014508,2]
[395313833,1764610238355,-500.0,0.00014508,2]
[395313834,1764610238365,-500.0,0.00014508,2]
[395313836,1764610238377,-500.0,0.00014508,2]
[395313838,1764610238389,-500.0,0.00014508,2]
[395313840,1764610238398,-500.0,0.00014508,2]
[395313842,1764610238408,-500.0,0.00014508,2]
[395313845,1764610238420,-500.0,0.00014508,2]
[395313846,1764610238429,-500.0,0.00014508,2]
[395313849,1764610238440,-500.0,0.00014508,2]
[395313851,1764610238449,-500.0,0.00014508,2]
[395313853,1764610238459,-500.0,0.00014508,2]
[395313855,1764610238468,-500.0,0.00014508,2]
[395313857,1764610238478,-500.0,0.00014508,2]
[395313859,1764610238487,-500.0,0.00014508,2]
[395313861,1764610238496,-500.0,0.00014508,2]
[395313863,1764610238506,-500.0,0.00014508,2]
[395313864,1764610238514,-500.0,0.00014508,2]
[395313867,1764610238524,-500.0,0.00014508,2]
[395313869,1764610238534,-500.0,0.00014508,2]
[395313870,1764610238543,-628.88445166,0.00014508,2]
[395313873,1764610238553,-500.0,0.00014508,2]
[395313874,1764610238563,-500.0,0.00014508,2]
[395313876,1764610238572,-500.0,0.00014508,2]
[395313878,1764610238582,-500.0,0.00014508,2]
[395313880,1764610238591,-500.0,0.00014508,2]
[395313883,1764610238602,-434.2840336,0.00014508,2]
[395313885,1764610238611,-500.0,0.00014508,2]
[395313887,1764610238621,-500.0,0.00014508,2]
[395313921,1764610238961,-500.0,0.00014508,2]
[395313925,1764610238988,-500.0,0.00014508,2]
[395313927,1764610238998,-500.0,0.00014508,2]
[395313929,1764610239008,-500.0,0.00014508,2]
[395313931,1764610239018,-500.0,0.00014508,2]
[395313933,1764610239027,-500.0,0.00014508,2]
[395313935,1764610239038,-500.0,0.00014508,2]
[395313937,1764610239048,-500.0,0.00014508,2]
[395313939,1764610239057,-500.0,0.00014508,2]
[395313941,1764610239067,-522.82513795,0.00014508,2]
[395313943,1764610239077,-500.0,0.00014508,2]
[395313945,1764610239087,-500.0,0.00014508,2]
[395313947,1764610239097,-500.0,0.00014508,2]
[395313949,1764610239106,-500.0,0.00014508,2]
[395313951,1764610239116,-500.0,0.00014508,2]
[395313953,1764610239125,-500.0,0.00014508,2]
[395313954,1764610239135,-500.0,0.00014508,2]
[395313957,1764610239145,-300.0,0.00014508,2]
[395313959,1764610239155,-300.0,0.00014508,2]
[395313961,1764610239165,-300.0,0.00014508,2]
[395313962,1764610239174,-349.89110636,0.00014508,2]
[395313965,1764610239184,-500.0,0.00014508,2]
[395313967,1764610239194,-500.0,0.00014508,2]
[395313969,1764610239204,-500.0,0.00014508,2]
[395313971,1764610239213,-648.98,0.00014508,2]
[395313973,1764610239223,-648.98,0.00014508,2]
[395313975,1764610239232,-648.98,0.00014508,2]
[395313977,1764610239242,-648.98,0.00014508,2]
[395313979,1764610239251,-648.98,0.00014508,2]
[395313981,1764610239260,-648.98,0.00014508,2]
[395313983,1764610239270,-648.98,0.00014508,2]
[395313985,1764610239280,-648.98,0.00014508,2]
[395313987,1764610239290,-648.98,0.00014508,2]
[395313989,1764610239299,-648.98,0.00014508,2]
[395313991,1764610239309,-648.98,0.00014508,2]
[395313993,1764610239319,-648.98,0.00014508,2]
[395313995,1764610239328,-648.98,0.00014508,2]
[395313997,1764610239339,-648.98,0.00014508,2]
[395313999,1764610239348,-648.98,0.00014508,2]
[395314001,1764610239358,-648.98,0.00014508,2]
[395314002,1764610239367,-648.98,0.00014508,2]
[395314004,1764610239379,-648.98,0.00014508,2]
[395314006,1764610239391,-648.98,0.00014508,2]
[395314007,1764610239400,-648.98,0.00014508,2]
[395314008,1764610239410,-648.98,0.00014508,2]
[395314009,1764610239420,-648.98,0.00014508,2]
[395314010,1764610239429,-648.98,0.00014508,2]
[395314011,1764610239440,-649.09797429,0.00014508,2]
[395314012,1764610239449,-1000.0,0.00014509,2]
[395314013,1764610239459,-9999.99,0.00014509,2]
[395314014,1764610239471,-14640.13,0.00014509,2]
[395314015,1764610239480,-150.99,0.00014509,2]
[395314016,1764610239490,-8530.12,0.00014555,2]
[395314017,1764610239499,-1149.8,0.00014555,2]
[395314018,1764610239509,-500.0,0.00014608,2]
[395314019,1764610239519,-500.0,0.00014608,2]
[395314020,1764610239528,-611.10141512,0.00014608,2]
[395314021,1764610239538,-500.0,0.00014608,2]
[395314022,1764610239547,-500.0,0.00014608,2]
[395314023,1764610239556,-500.0,0.00014608,2]
[395314024,1764610239565,-500.0,0.00014608,2]
[395314025,1764610239574,-500.0,0.00014608,2]
[395314026,1764610239583,-202.5805669,0.00014608,2]
[395314028,1764610239593,-500.0,0.00014608,2]
[395314030,1764610239603,-500.0,0.00014608,2]
[395314032,1764610239612,-500.0,0.00014608,2]
[395314033,1764610239621,-500.0,0.00014608,2]
[395314034,1764610239630,-500.0,0.00014608,2]
[395314035,1764610239640,-500.0,0.00014608,2]
[395314036,1764610239649,-500.0,0.00014608,2]
[395314037,1764610239660,-564.2,0.00014608,2]
[395314038,1764610239669,-500.0,0.00014608,2]
[395314039,1764610239678,-571.55421177,0.00014608,2]
[395314040,1764610239688,-500.0,0.00014608,2]
[395314041,1764610239698,-161.86739996,0.0001462,2]
[395314042,1764610239708,-433.0,0.00014678,2]
[395314043,1764610239718,-2975.97524975,0.00014689,2]
[395314044,1764610239728,-1641.82,0.0001469,2]
[395314045,1764610239738,-272.52,0.00014698,2]
[395314046,1764610239748,-2601.02,0.00014729,2]
[395314047,1764610239757,-299.99,0.00014729,2]
[395314048,1764610239767,-3155.89,0.00014729,2]
[395314049,1764610239776,-1457.89,0.00014729,2]
[395314050,1764610239786,-9999.99,0.00014729,2]
[395314051,1764610239795,-225.39616974,0.000149,2]
[395314052,1764610239805,-328.59727827,0.00014913,2]
[395314054,1764610239814,-587.0,0.00014928,2]
[395314056,1764610239824,-587.0,0.00014928,2]
[395314058,1764610239833,-400.72612389,0.00014931,2]
[395314060,1764610239842,-1641.82,0.00014964,2]
[395314061,1764610239852,-2975.97524975,0.00014969,2]
[395314062,1764610239861,-3901.42886975,0.00014999,2]
[395314063,1764610239871,-770.98935679,0.00015,2]
[395314064,1764610239880,-1192.8279898,0.00015,2]
[395314065,1764610239890,-222399.94235761,0.00015,4]
[395314066,1764610239899,-50008.37285184,0.00015,2]
[395314067,1764610239909,-2351.0,0.00015,2]
[395314068,1764610239919,-251.0,0.00015001,2]
[395314069,1764610239928,-191253.98424332,0.00015029,2]
[395314070,1764610239938,-379.0,0.00015031,2]
[395314071,1764610239947,-1641.82,0.00015238,2]
[395314072,1764610239956,-2975.97524975,0.00015249,2]
[395314073,1764610239965,-1517.64,0.000153,2]
[395314074,1764610239974,-16591.30030918,0.000154,2]
[395314075,1764610239983,-504.59701012,0.000154,2]
[395314076,1764610239992,-1641.82,0.00015512,2]
[395314077,1764610240001,-2975.97524975,0.00015529,2]
[395314078,1764610240011,-1961.0,0.00015538,2]
[395314079,1764610240020,-794.00430531,0.00015569,2]
[395314080,1764610240029,-620.0,0.00015605,2]
[395314081,1764610240038,-1235.0,0.00015636,2]
[395314082,1764610240048,-695.0,0.00015657,2]
[395314083,1764610240060,-272.0,0.00015657,2]
[395314084,1764610240070,-368.0,0.00015689,2]
[395314085,1764610240080,-270.0,0.00015753,2]
[395314086,1764610240089,-251.0,0.00015761,2]
[395314087,1764610240099,-1641.82,0.00015786,2]
[395314088,1764610240109,-2223.21323629,0.00015807,2]
[395314089,1764610240118,-2975.97524975,0.00015809,2]
[395314090,1764610240127,-905.0,0.00015844,2]
[395314091,1764610240138,-19870.17,0.00015875,2]
[395314092,1764610240147,-544.0,0.00015875,2]
[395314093,1764610240157,-234.0451931,0.000159,2]
[395314094,1764610240166,-672.0,0.00015907,2]
[395314095,1764610240175,-234.0451931,0.00015945,2]
[395314096,1764610240185,-691.0,0.00015967,2]
[395314097,1764610240195,-5062.10661344,0.00015981,2]
[395314098,1764610240204,-421.17223496,0.00015989,2]
[395314099,1764610240213,-3854.15082179,0.00015989,2]
[395314100,1764610240222,-216.06157058,0.00015989,2]
[395314101,1764610240231,-182.42815086,0.00015989,2]
[395314102,1764610240241,-234.0451931,0.00015989,2]
[395314103,1764610240250,-2130.77590939,0.0001599,2]
[395314104,1764610240259,-2130.77590939,0.0001599,2]
[395314105,1764610240268,-552.29203276,0.00016,2]
[395314106,1764610240277,-23669.11750587,0.00016,2]
[395314107,1764610240286,-241751.88629714,0.00016,2]
[395314108,1764610240295,-2707661.42852131,0.00016,4]
[395314113,1764610241617,-3379.8,0.00016,4]
[395314114,1764610241855,-452742.32223868,0.00016,4]
[395314115,1764610241865,-1641.82,0.0001606,2]
[395314116,1764610241875,-2975.97524975,0.00016089,2]
[395314117,1764610241885,-5000.00949158,0.000162,5]
[395314118,1764610241894,-1641.82,0.00016334,2]
[395314119,1764610241904,-2975.97524975,0.00016369,2]
[395314120,1764610241914,-250.0,0.00016381,2]
[395314121,1764610241923,-823.0,0.00016381,2]
[395314122,1764610241932,-207.0,0.0001642,2]
[395314123,1764610241941,-500.0,0.00016438,2]
[395314124,1764610241951,-500.0,0.00016438,2]
[395314125,1764610241960,-500.0,0.00016438,2]
[395314126,1764610241969,-500.0,0.00016438,2]
[395314127,1764610241979,-500.0,0.00016438,2]
[395314128,1764610241988,-500.0,0.00016438,2]
[395314129,1764610241997,-500.0,0.00016438,2]
[395314130,1764610242007,-500.0,0.00016438,2]
[395314131,1764610242016,-500.0,0.00016438,2]
[395314132,1764610242025,-500.0,0.00016438,2]
[395314133,1764610242034,-500.0,0.00016438,2]
[395314134,1764610242043,-500.0,0.00016438,2]
[395314135,1764610242052,-500.0,0.00016438,2]
[395314136,1764610242062,-500.0,0.00016438,2]
[395314137,1764610242071,-500.0,0.00016438,2]
[395314138,1764610242081,-500.0,0.00016438,2]
[395314139,1764610242090,-500.0,0.00016438,2]
[395314140,1764610242100,-500.0,0.00016438,2]
[395314141,1764610242109,-500.0,0.00016438,2]
[395314142,1764610242119,-500.0,0.00016438,2]
[395314143,1764610242128,-447.38932777,0.00016438,2]
[395314144,1764610242138,-500.0,0.00016438,2]
[395314145,1764610242148,-500.0,0.00016438,2]
[395314146,1764610242158,-500.0,0.00016438,2]
[395314147,1764610242167,-500.0,0.00016438,2]
[395314148,1764610242177,-500.0,0.00016438,2]
[395314149,1764610242186,-500.0,0.00016438,2]
[395314150,1764610242196,-500.0,0.00016438,2]
[395314151,1764610242205,-500.0,0.00016438,2]
[395314152,1764610242215,-500.0,0.00016438,2]
[395314153,1764610242224,-500.0,0.00016438,2]
[395314154,1764610242233,-500.0,0.00016438,2]
[395314155,1764610242243,-500.0,0.00016438,2]
[395314156,1764610242252,-500.0,0.00016438,2]
[395314157,1764610242261,-500.0,0.00016438,2]
[395314158,1764610242270,-500.0,0.00016438,2]
[395314159,1764610242281,-500.0,0.00016438,2]
[395314160,1764610242290,-500.0,0.00016438,2]
[395314161,1764610242299,-500.0,0.00016438,2]
[395314162,1764610242309,-500.0,0.00016438,2]
[395314163,1764610242320,-501.93,0.00016438,2]
[395314164,1764610242329,-501.93,0.00016438,2]
[395314165,1764610242339,-501.93,0.00016438,2]
[395314166,1764610242349,-501.93,0.00016438,2]
[395314167,1764610242358,-501.93,0.00016438,2]
[395314168,1764610242368,-501.93,0.00016438,2]
[395314169,1764610242381,-800.0,0.00016438,2]
[395314170,1764610242390,-4379.08235922,0.0001644,2]
[395314171,1764610242400,-3292.0,0.000165,2]
[395314172,1764610242409,-357.76401239,0.000166,2]
[395314173,1764610242419,-1641.82,0.00016608,2]
[395314174,1764610242429,-207.0,0.0001663,2]
[395314175,1764610242438,-2975.97524975,0.00016649,2]
[395314176,1764610242447,-207.0,0.00016726,2]
[395314177,1764610242458,-207.0,0.00016789,2]
[395314178,1764610242468,-207.0,0.00016846,2]
[395314179,1764610242477,-207.0,0.00016867,2]
[395314180,1764610242486,-1641.82,0.00016882,2]
[395314181,1764610242495,-2975.97524975,0.00016929,2]
[395314182,1764610242504,-500.0,0.00016966,2]
[395314183,1764610242514,-500.0,0.00016966,2]
[395314184,1764610242523,-500.0,0.00016966,2]
[395314185,1764610242533,-500.0,0.00016966,2]
[395314186,1764610242542,-3502.1719913,0.00016967,2]
[395314187,1764610242551,-300.85730487,0.00016973,2]
[395314188,1764610242561,-162.69006403,0.00016973,2]
[395314189,1764610242570,-500.0,0.00016973,2]
[395314190,1764610242579,-500.0,0.00016973,2]
[395314191,1764610242589,-502.07472524,0.00016973,2]
[395314192,1764610242598,-366.67180907,0.00016973,2]
[395314193,1764610242607,-500.0,0.00016973,2]
[395314194,1764610242617,-500.0,0.00016973,2]
[395314196,1764610242626,-500.0,0.00016973,2]
[395314198,1764610242636,-233.06885898,0.00016973,2]
[395314200,1764610242646,-500.0,0.00016973,2]
[395314202,1764610242655,-500.0,0.00016973,2]
[395314203,1764610242665,-500.0,0.00016973,2]
[395314204,1764610242674,-500.0,0.00016973,2]
[395314205,1764610242683,-500.0,0.00016973,2]
[395314206,1764610242693,-295.21198684,0.00016973,2]
[395314207,1764610242703,-500.0,0.00016973,2]
[395314208,1764610242713,-500.0,0.00016973,2]
[395314209,1764610242722,-162.47379321,0.00016973,2]
[395314211,1764610242732,-500.0,0.00016973,2]
[395314212,1764610242741,-500.0,0.00016973,2]
[395314214,1764610242751,-500.0,0.00016973,2]
[395314216,1764610242761,-1716.0,0.00016986,2]
[395314217,1764610242770,-15940.0,0.00016986,2]
[395314218,1764610242779,-2130.77590939,0.0001699,2]
[395314219,1764610242788,-500.0,0.00016999,2]
[395314221,1764610242798,-500.0,0.00016999,2]
[395314223,1764610242807,-500.0,0.00016999,2]
[395314224,1764610242817,-500.0,0.00016999,2]
[395314225,1764610242826,-500.0,0.00016999,2]
[395314226,1764610242835,-500.0,0.00016999,2]
[395314227,1764610242844,-500.0,0.00016999,2]
[395314228,1764610242854,-500.0,0.00016999,2]
[395314229,1764610242863,-500.0,0.00016999,2]
[395314230,1764610242873,-500.0,0.00016999,2]
[395314231,1764610242883,-300.0,0.00016999,2]
[395314232,1764610242892,-300.0,0.00016999,2]
[395314233,1764610242902,-501.93,0.00016999,2]
[395314234,1764610242911,-501.93,0.00016999,2]
[395314235,1764610242921,-501.93,0.00016999,2]
[395314236,1764610242930,-501.93,0.00016999,2]
[395314237,1764610242940,-501.93,0.00016999,2]
[395314238,1764610242949,-501.93,0.00016999,2]
[395314239,1764610242958,-501.93,0.00016999,2]
[395314240,1764610242968,-501.93,0.00016999,2]
[395314241,1764610242977,-501.93,0.00016999,2]
[395314242,1764610242986,-501.93,0.00016999,2]
[395314243,1764610242996,-501.93,0.00016999,2]
[395314244,1764610243005,-501.93,0.00016999,2]
[395314245,1764610243014,-501.93,0.00016999,2]
[395314246,1764610243023,-501.93,0.00016999,2]
[395314247,1764610243032,-501.93,0.00016999,2]
[395314248,1764610243041,-501.93,0.00016999,2]
[395314249,1764610243051,-501.93,0.00016999,2]
[395314250,1764610243060,-502.12,0.00016999,2]
[395314251,1764610243070,-300.0,0.00016999,2]
[395314252,1764610243079,-300.0,0.00016999,2]
[395314253,1764610243088,-250.0,0.00017,2]
[395314254,1764610243098,-68994.95485219,0.00017,2]